fUST/lending_fUST_20250209
["ID","MTS","AMOUNT","RATE_DAILY","PERIOD"]
[352314827,1739039442462,-35000.000001,0.00011614,2]
[352314829,1739039442472,-500.0,0.00011628,2]
[352314831,1739039442481,-334.098782,0.00011643,2]
[352314833,1739039442491,-334.098782,0.00011643,2]
[352314835,1739039442500,-151.0,0.00011643,2]
[352314837,1739039442509,-500.0,0.00011643,2]
[352314839,1739039442519,-408.90997083,0.00011643,2]
[352314841,1739039442529,-367.723109,0.00011643,2]
[352314843,1739039442539,-367.723109,0.00011643,2]
[352314845,1739039442548,-592.13,0.00011643,2]
[352314847,1739039442558,-235.744348,0.00011643,2]
[352314849,1739039442568,-235.744348,0.00011643,2]
[352314851,1739039442578,-151.0,0.00011643,2]
[352314853,1739039442588,-500.0,0.00011643,2]
[352314855,1739039442599,-595.3,0.00011643,2]
[352314857,1739039442612,-663.4,0.00011643,2]
[352314859,1739039442622,-724.71,0.00011643,2]
[352314861,1739039442632,-1221.92,0.00011643,2]
[352314863,1739039442644,-1216.59,0.00011643,2]
[352314865,1739039442655,-548.93,0.00011643,2]
[352314867,1739039442664,-985.72,0.00011643,2]
[352314869,1739039442675,-500.0,0.00011643,2]
[352314871,1739039442684,-500.0,0.00011643,2]
[352314874,1739039442693,-543.17,0.00011643,2]
[352314877,1739039442703,-500.0,0.00011643,2]
[352314880,1739039442712,-249.622459,0.00011643,2]
[352314885,1739039442721,-249.622459,0.00011643,2]
[352314889,1739039442730,-859.29,0.00011643,2]
[352314892,1739039442739,-151.0,0.00011643,2]
[352314896,1739039442749,-151.12975,0.00011643,2]
[352314899,1739039442758,-500.0,0.00011643,2]
[352314901,1739039442767,-1144.1,0.00011643,2]
[352314904,1739039442776,-500.0,0.00011643,2]
[352314907,1739039442785,-796.58,0.00011643,2]
[352314910,1739039442795,-1244.398313,0.00011643,2]
[352314913,1739039442804,-538.85,0.00011643,2]
[352314916,1739039442814,-500.0,0.00011643,2]
[352314918,1739039442823,-1244.398313,0.00011643,2]
[352314920,1739039442832,-500.0,0.00011643,2]
[352314922,1739039442841,-151.0,0.00011643,2]
[352314924,1739039442851,-500.0,0.00011643,2]
[352314926,1739039442861,-151.0,0.00011643,2]
[352314928,1739039442870,-915.62,0.00011643,2]
[352314930,1739039442880,-593.53,0.00011643,2]
[352314932,1739039442889,-526.91,0.00011643,2]
[352314934,1739039442898,-588.83,0.00011643,2]
[352314936,1739039442907,-887.68,0.00011643,2]
[352314938,1739039442916,-520.73,0.00011643,2]
[352314940,1739039442926,-352.99737,0.00011643,2]
[352314942,1739039442935,-352.99737,0.00011643,2]
[352314944,1739039442944,-500.0,0.00011643,2]
[352314946,1739039442954,-630.21802614,0.00011643,2]
[352314948,1739039442963,-500.0,0.00011643,2]
[352314950,1739039442972,-1026.21,0.00011643,2]
[352314952,1739039442981,-1000.74,0.00011643,2]
[352314954,1739039442991,-500.0,0.00011643,2]
[352314956,1739039443000,-653.32,0.00011643,2]
[352314958,1739039443009,-907.94,0.00011643,2]
[352314960,1739039443018,-1985.46,0.00011643,2]
[352314962,1739039443028,-682.61,0.00011643,2]
[352314964,1739039443037,-855.76,0.00011643,2]
[352314966,1739039443046,-4155.0,0.00011643,2]
[352314968,1739039443056,-210.94,0.00011643,2]
[352314970,1739039443065,-30522.83,0.00011643,2]
[352314972,1739039443075,-500.0,0.00011643,2]
[352314974,1739039443084,-1306.64,0.00011643,2]
[352314976,1739039443093,-1577.08,0.00011643,2]
[352314978,1739039443102,-500.0,0.00011643,2]
[352314980,1739039443113,-946.05,0.00011643,2]
[352314982,1739039443122,-500.0,0.00011643,2]
[352314984,1739039443133,-1026.97,0.00011643,2]
[352314986,1739039443142,-2630.77,0.00011643,2]
[352314988,1739039443151,-351.80031,0.00011643,2]
[352314990,1739039443161,-713.394918,0.00011643,2]
[352314992,1739039443172,-12074.36,0.00011643,2]
[352314994,1739039443182,-612.68,0.00011643,2]
[352314996,1739039443191,-351.80031,0.00011643,2]
[352314998,1739039443201,-3929.56,0.00011643,2]
[352315000,1739039443210,-713.394918,0.00011643,2]
[352315002,1739039443221,-1584.98,0.00011643,2]
[352315004,1739039443231,-417.76918412,0.00011643,2]
[352315006,1739039443240,-575.27,0.00011643,2]
[352315008,1739039443251,-1266.86,0.00011643,2]
[352315010,1739039443260,-587.1,0.00011643,2]
[352315012,1739039443269,-1235.99,0.00011643,2]
[352315014,1739039443280,-500.0,0.00011643,2]
[352315016,1739039443289,-887.45,0.00011643,2]
[352315018,1739039443298,-500.0,0.00011643,2]
[352315020,1739039443307,-1173.39,0.00011643,2]
[352315022,1739039443316,-500.0,0.00011643,2]
[352315024,1739039443325,-500.0,0.00011643,2]
[352315026,1739039443335,-1569.38,0.00011643,2]
[352315028,1739039443344,-500.0,0.00011643,2]
[352315029,1739039443353,-500.0,0.00011643,2]
[352315030,1739039443363,-500.0,0.00011643,2]
[352315032,1739039443374,-500.0,0.00011643,2]
[352315034,1739039443383,-637.668842,0.00011643,2]
[352315036,1739039443393,-637.668842,0.00011643,2]
[352315038,1739039443406,-627.42,0.00011643,2]
[352315040,1739039443415,-305.864448,0.00011643,2]
[352315042,1739039443424,-305.864448,0.00011643,2]
[352315044,1739039443434,-2448.66,0.00011643,2]
[352315046,1739039443443,-1122.78,0.00011643,2]
[352315048,1739039443452,-2492.33,0.00011643,2]
[352315050,1739039443461,-151.0,0.00011643,2]
[352315052,1739039443470,-500.0,0.00011643,2]
[352315054,1739039443480,-519.59,0.00011643,2]
[352315056,1739039443489,-212.339,0.00011643,2]
[352315058,1739039443498,-1301.47,0.00011643,2]
[352315060,1739039443507,-6246.96,0.00011643,2]
[352315062,1739039443516,-576.62,0.00011643,2]
[352315064,1739039443526,-212.339,0.00011643,2]
[352315066,1739039443535,-1204.4,0.00011643,2]
[352315068,1739039443544,-151.0,0.00011643,2]
[352315070,1739039443554,-1145.37,0.00011643,2]
[352315072,1739039443564,-500.0,0.00011643,2]
[352315074,1739039443573,-649.91,0.00011643,2]
[352315076,1739039443583,-500.0,0.00011643,2]
[352315078,1739039443592,-2619.5,0.00011643,2]
[352315080,1739039443601,-500.0,0.00011643,2]
[352315082,1739039443612,-2974.01,0.00011643,2]
[352315084,1739039443621,-11725.96,0.00011643,2]
[352315086,1739039443631,-632.59,0.00011643,2]
[352315088,1739039443640,-151.0,0.00011643,2]
[352315090,1739039443649,-500.0,0.00011671,2]
[352315092,1739039443659,-305.74029623,0.00011671,2]
[352315094,1739039443668,-151.0,0.0001168,2]
[352315096,1739039443679,-367.723109,0.0001168,2]
[352315098,1739039443688,-367.723109,0.0001168,2]
[352315100,1739039443697,-235.744348,0.0001168,2]
[352315102,1739039443707,-235.744348,0.0001168,2]
[352315104,1739039443716,-151.0,0.0001168,2]
[352315106,1739039443726,-154.5736464,0.000117,2]
[352315108,1739039443735,-151.0,0.000117,2]
[352315110,1739039443745,-151.0,0.000117,2]
[352315112,1739039443754,-600.0,0.00011703,2]
[352315114,1739039443763,-431.4328151,0.00011726,2]
[352315116,1739039443773,-3411.0,0.00011734,2]
[352315118,1739039443782,-643.358,0.00011738,2]
[352315120,1739039443791,-2500.0,0.00011745,2]
[352315122,1739039443801,-2500.0,0.00011754,2]
[352315124,1739039443810,-151.0,0.00011762,2]
[352315126,1739039443820,-2500.0,0.00011762,2]
[352315128,1739039443829,-2500.0,0.00011771,2]
[352315130,1739039443838,-334.098782,0.0001178,2]
[352315132,1739039443847,-334.098782,0.0001178,2]
[352315134,1739039443857,-2500.0,0.0001178,2]
[352315136,1739039443866,-500.0,0.0001178,2]
[352315138,1739039443875,-202.285047,0.0001178,2]
[352315140,1739039443885,-202.285047,0.0001178,2]
[352315142,1739039443894,-592.13,0.0001178,2]
[352315144,1739039443904,-294.62906,0.0001178,2]
[352315146,1739039443913,-294.62906,0.0001178,2]
[352315148,1739039443923,-500.0,0.0001178,2]
[352315150,1739039443932,-240.369502,0.0001178,2]
[352315152,1739039443941,-240.369502,0.0001178,2]
[352315154,1739039443951,-204.568823,0.0001178,2]
[352315156,1739039443960,-595.3,0.0001178,2]
[352315158,1739039443970,-204.568823,0.0001178,2]
[352315160,1739039443979,-663.4,0.0001178,2]
[352315162,1739039443988,-724.71,0.0001178,2]
[352315164,1739039443997,-1221.92,0.0001178,2]
[352315166,1739039444006,-982.194765,0.0001178,2]
[352315168,1739039444015,-1216.59,0.0001178,2]
[352315170,1739039444024,-548.93,0.0001178,2]
[352315172,1739039444034,-982.194765,0.0001178,2]
[352315174,1739039444043,-985.72,0.0001178,2]
[352315176,1739039444052,-500.0,0.0001178,2]
[352315178,1739039444062,-500.0,0.0001178,2]
[352315180,1739039444071,-543.17,0.0001178,2]
[352315182,1739039444081,-500.0,0.0001178,2]
[352315184,1739039444091,-457.793626,0.0001178,2]
[352315186,1739039444100,-457.793626,0.0001178,2]
[352315188,1739039444110,-859.29,0.0001178,2]
[352315190,1739039444120,-500.0,0.0001178,2]
[352315192,1739039444129,-1144.1,0.0001178,2]
[352315194,1739039444138,-500.0,0.0001178,2]
[352315196,1739039444148,-796.58,0.0001178,2]
[352315198,1739039444157,-538.85,0.0001178,2]
[352315200,1739039444167,-500.0,0.0001178,2]
[352315202,1739039444179,-500.0,0.0001178,2]
[352315204,1739039444188,-2500.0,0.0001178,2]
[352315206,1739039444198,-500.0,0.0001178,2]
[352315208,1739039444208,-915.62,0.0001178,2]
[352315209,1739039444217,-593.53,0.0001178,2]
[352315210,1739039444227,-526.91,0.0001178,2]
[352315211,1739039444371,-588.83,0.0001178,2]
[352315212,1739039444389,-887.68,0.0001178,2]
[352315214,1739039444399,-520.73,0.0001178,2]
[352315216,1739039444408,-500.0,0.0001178,2]
[352315218,1739039444418,-1026.21,0.0001178,2]
[352315220,1739039444427,-1000.74,0.0001178,2]
[352315222,1739039444438,-500.0,0.0001178,2]
[352315224,1739039444446,-653.32,0.0001178,2]
[352315226,1739039444455,-907.94,0.0001178,2]
[352315228,1739039444467,-1985.46,0.0001178,2]
[352315230,1739039444478,-682.61,0.0001178,2]
[352315232,1739039444487,-855.76,0.0001178,2]
[352315234,1739039444497,-4155.0,0.0001178,2]
[352315236,1739039444507,-30522.83,0.0001178,2]
[352315238,1739039444516,-500.0,0.0001178,2]
[352315240,1739039444525,-1306.64,0.0001178,2]
[352315242,1739039444534,-1577.08,0.0001178,2]
[352315244,1739039444543,-500.0,0.0001178,2]
[352315246,1739039444553,-946.05,0.0001178,2]
[352315248,1739039444562,-500.0,0.0001178,2]
[352315250,1739039444571,-1026.97,0.0001178,2]
[352315252,1739039444581,-2630.77,0.0001178,2]
[352315254,1739039444590,-12074.36,0.0001178,2]
[352315255,1739039444599,-612.68,0.0001178,2]
[352315257,1739039444609,-3929.56,0.0001178,2]
[352315259,1739039444618,-168.60707817,0.0001178,2]
[352315295,1739039444952,-810.47,0.00011506,2]
[352315297,1739039444962,-810.47,0.00011643,2]
[352315299,1739039444971,-1416.37292183,0.0001178,2]
[352315301,1739039444980,-575.27,0.0001178,2]
[352315303,1739039444989,-1266.86,0.0001178,2]
[352315305,1739039444999,-587.1,0.0001178,2]
[352315307,1739039445008,-1235.99,0.0001178,2]
[352315309,1739039445018,-887.45,0.0001178,2]
[352315311,1739039445026,-500.0,0.0001178,2]
[352315313,1739039445036,-500.0,0.0001178,2]
[352315315,1739039445045,-1173.39,0.0001178,2]
[352315317,1739039445053,-500.0,0.0001178,2]
[352315319,1739039445063,-500.0,0.0001178,2]
[352315321,1739039445071,-1569.38,0.0001178,2]
[352315323,1739039445080,-500.0,0.0001178,2]
[352315325,1739039445089,-500.0,0.0001178,2]
[352315328,1739039445108,-500.0,0.0001178,2]
[352315330,1739039445119,-627.42,0.0001178,2]
[352315332,1739039445129,-305.864448,0.0001178,2]
[352315334,1739039445139,-305.864448,0.0001178,2]
[352315335,1739039445148,-2448.66,0.0001178,2]
[352315336,1739039445158,-1122.78,0.0001178,2]
[352315337,1739039445170,-2492.33,0.0001178,2]
[352315338,1739039445183,-151.0,0.0001178,2]
[352315339,1739039445193,-500.0,0.0001178,2]
[352315340,1739039445203,-519.59,0.0001178,2]
[352315341,1739039445214,-1301.47,0.0001178,2]
[352315342,1739039445224,-6246.96,0.0001178,2]
[352315343,1739039445234,-576.62,0.0001178,2]
[352315344,1739039445245,-1204.4,0.0001178,2]
[352315345,1739039445256,-151.0,0.0001178,2]
[352315346,1739039445266,-1145.37,0.0001178,2]
[352315347,1739039445276,-500.0,0.0001178,2]
[352315348,1739039445287,-649.91,0.0001178,2]
[352315349,1739039445298,-500.0,0.0001178,2]
[352315350,1739039445308,-2619.5,0.0001178,2]
[352315351,1739039445318,-500.0,0.0001178,2]
[352315352,1739039445328,-2974.01,0.0001178,2]
[352315353,1739039445339,-11725.96,0.0001178,2]
[352315354,1739039445349,-632.59,0.0001178,2]
[352315355,1739039445358,-810.47,0.0001178,2]
[352315356,1739039445368,-151.0,0.000118,2]
[352315357,1739039445378,-159.45989176,0.00011817,2]
[352315358,1739039445388,-1000.0,0.0001187,2]
[352315359,1739039445398,-1975.0,0.00011881,2]
[352315360,1739039445408,-537.0,0.00011881,2]
[352315361,1739039445418,-2296.0,0.00011881,2]
[352315362,1739039445428,-713.394918,0.00011881,2]
[352315363,1739039445437,-713.394918,0.00011881,2]
[352315365,1739039445447,-473.25668952,0.00011885,2]
[352315366,1739039445459,-1244.398313,0.00011885,2]
[352315367,1739039445469,-1244.398313,0.00011885,2]
[352315368,1739039445479,-157.516789,0.00011885,2]
[352315369,1739039445488,-214.294755,0.00011885,2]
[352315370,1739039445499,-334.098782,0.00011917,2]
[352315372,1739039445509,-334.098782,0.00011917,2]
[352315374,1739039445519,-151.0,0.00011917,2]
[352315376,1739039445528,-500.0,0.00011917,2]
[352315378,1739039445539,-367.723109,0.00011917,2]
[352315379,1739039445548,-367.723109,0.00011917,2]
[352315380,1739039445558,-592.13,0.00011917,2]
[352315382,1739039445570,-294.62906,0.00011917,2]
[352315384,1739039445580,-294.62906,0.00011917,2]
[352315385,1739039445589,-235.744348,0.00011917,2]
[352315387,1739039445599,-235.744348,0.00011917,2]
[352315388,1739039445609,-151.0,0.00011917,2]
[352315390,1739039445619,-500.0,0.00011917,2]
[352315392,1739039445628,-595.3,0.00011917,2]
[352315394,1739039445638,-663.4,0.00011917,2]
[352315396,1739039445648,-288.994636,0.00011917,2]
[352315398,1739039445657,-724.71,0.00011917,2]
[352315400,1739039445666,-1221.92,0.00011917,2]
[352315402,1739039445675,-1216.59,0.00011917,2]
[352315403,1739039445685,-548.93,0.00011917,2]
[352315405,1739039445695,-985.72,0.00011917,2]
[352315407,1739039445705,-500.0,0.00011917,2]
[352315409,1739039445714,-500.0,0.00011917,2]
[352315411,1739039445723,-543.17,0.00011917,2]
[352315414,1739039445732,-500.0,0.00011917,2]
[352315416,1739039445742,-249.622459,0.00011917,2]
[352315418,1739039445752,-249.622459,0.00011917,2]
[352315420,1739039445762,-859.29,0.00011917,2]
[352315421,1739039445772,-151.0,0.00011917,2]
[352315422,1739039445781,-500.0,0.00011917,2]
[352315424,1739039445791,-1144.1,0.00011917,2]
[352315426,1739039445801,-796.58,0.00011917,2]
[352315427,1739039445811,-538.85,0.00011917,2]
[352315428,1739039445822,-500.0,0.00011917,2]
[352315429,1739039445833,-500.0,0.00011917,2]
[352315430,1739039445842,-500.0,0.00011917,2]
[352315431,1739039445852,-915.62,0.00011917,2]
[352315432,1739039445861,-593.53,0.00011917,2]
[352315433,1739039445871,-526.91,0.00011917,2]
[352315434,1739039445880,-588.83,0.00011917,2]
[352315435,1739039445892,-887.68,0.00011917,2]
[352315436,1739039445902,-520.73,0.00011917,2]
[352315437,1739039445911,-352.99737,0.00011917,2]
[352315438,1739039445921,-352.99737,0.00011917,2]
[352315439,1739039445931,-500.0,0.00011917,2]
[352315440,1739039445940,-1000.74,0.00011917,2]
[352315441,1739039445952,-584.62455967,0.00011917,2]
[352315442,1739039445962,-653.32,0.00011917,2]
[352315443,1739039445972,-907.94,0.00011917,2]
[352315444,1739039445982,-1985.46,0.00011917,2]
[352315445,1739039445991,-682.61,0.00011917,2]
[352315446,1739039446001,-855.76,0.00011917,2]
[352315447,1739039446010,-4155.0,0.00011917,2]
[352315448,1739039446019,-18034.82438428,0.00011917,2]
[352315486,1739039446500,-599.58,0.00010958,2]
[352315488,1739039446510,-500.0,0.00010958,2]
[352315489,1739039446519,-500.0,0.00011095,2]
[352315490,1739039446528,-12488.00561572,0.00011917,2]
[352315491,1739039446538,-500.0,0.00011917,2]
[352315492,1739039446548,-1306.64,0.00011917,2]
[352315493,1739039446557,-1577.08,0.00011917,2]
[352315494,1739039446568,-500.0,0.00011917,2]
[352315496,1739039446578,-946.05,0.00011917,2]
[352315498,1739039446588,-500.0,0.00011917,2]
[352315500,1739039446598,-1026.97,0.00011917,2]
[352315501,1739039446608,-2630.77,0.00011917,2]
[352315503,1739039446618,-351.80031,0.00011917,2]
[352315505,1739039446628,-12074.36,0.00011917,2]
[352315507,1739039446638,-612.68,0.00011917,2]
[352315510,1739039446647,-351.80031,0.00011917,2]
[352315511,1739039446656,-3929.56,0.00011917,2]
[352315514,1739039446667,-1584.98,0.00011917,2]
[352315516,1739039446676,-575.27,0.00011917,2]
[352315518,1739039446686,-1266.86,0.00011917,2]
[352315520,1739039446695,-587.1,0.00011917,2]
[352315522,1739039446705,-1235.99,0.00011917,2]
[352315524,1739039446714,-887.45,0.00011917,2]
[352315526,1739039446723,-500.0,0.00011917,2]
[352315528,1739039446732,-500.0,0.00011917,2]
[352315530,1739039446741,-692.62667497,0.00011917,2]
[352315532,1739039446753,-480.76332503,0.00011917,2]
[352315534,1739039446762,-500.0,0.00011917,2]
[352315536,1739039446772,-500.0,0.00011917,2]
[352315538,1739039446782,-324.77494213,0.00011917,2]
[352315540,1739039446793,-1244.60505787,0.00011917,2]
[352315542,1739039446802,-500.0,0.00011917,2]
[352315544,1739039446812,-500.0,0.00011917,2]
[352315546,1739039446821,-500.0,0.00011917,2]
[352315548,1739039446831,-637.668842,0.00011917,2]
[352315550,1739039446840,-637.668842,0.00011917,2]
[352315552,1739039446849,-627.42,0.00011917,2]
[352315555,1739039446859,-2448.66,0.00011917,2]
[352315557,1739039446869,-1122.78,0.00011917,2]
[352315559,1739039446878,-2492.33,0.00011917,2]
[352315561,1739039446888,-500.0,0.00011917,2]
[352315563,1739039446897,-519.59,0.00011917,2]
[352315565,1739039446906,-212.339,0.00011917,2]
[352315567,1739039446916,-1266.87672892,0.00011917,2]
[352315569,1739039446928,-34.59327108,0.00011917,2]
[352315571,1739039446937,-2709.31654343,0.00011917,2]
[352315573,1739039446949,-726.46428165,0.00011917,2]
[352315575,1739039446961,-440.98155185,0.00011917,2]
[352315578,1739039446974,-2370.19762307,0.00011917,2]
[352315580,1739039446984,-576.62,0.00011917,2]
[352315582,1739039446994,-212.339,0.00011917,2]
[352315584,1739039447003,-1204.4,0.00011917,2]
[352315586,1739039447013,-500.0,0.00011917,2]
[352315588,1739039447022,-1145.37,0.00011917,2]
[352315590,1739039447032,-649.91,0.00011917,2]
[352315592,1739039447043,-500.0,0.00011917,2]
[352315594,1739039447052,-2619.5,0.00011917,2]
[352315597,1739039447063,-500.0,0.00011917,2]
[352315599,1739039447073,-2974.01,0.00011917,2]
[352315600,1739039447082,-11725.96,0.00011917,2]
[352315603,1739039447091,-632.59,0.00011917,2]
[352315605,1739039447101,-810.47,0.00011917,2]
[352315607,1739039447111,-154.5736464,0.00011945,2]
[352315609,1739039447120,-238.2500979,0.00011945,2]
[352315611,1739039447129,-153.0,0.00011945,2]
[352315613,1739039447138,-153.0,0.00011945,2]
[352315615,1739039447148,-154.5736464,0.00011945,2]
[352315616,1739039447157,-153.0,0.00011945,2]
[352315618,1739039447171,-154.5736464,0.00011945,2]
[352315620,1739039447180,-154.5736464,0.00011945,2]
[352315622,1739039447189,-154.5736464,0.00011945,2]
[352315624,1739039447199,-215.7975175,0.00011945,2]
[352315626,1739039447208,-154.5736464,0.00011945,2]
[352315628,1739039447218,-215.7975175,0.00011945,2]
[352315630,1739039447228,-215.7975175,0.00011945,2]
[352315632,1739039447238,-215.7975175,0.00011945,2]
[352315634,1739039447249,-154.5736464,0.00011945,2]
[352315636,1739039447258,-215.7975175,0.00011945,2]
[352315638,1739039447268,-308.9900021,0.00011945,2]
[352315640,1739039447278,-154.5736464,0.00011945,2]
[352315642,1739039447288,-154.5736464,0.00011945,2]
[352315645,1739039447298,-206.9987929,0.00011945,2]
[352315647,1739039447309,-157.0,0.00011966,2]
[352315649,1739039447318,-157.0,0.00011966,2]
[352315651,1739039447329,-163.0,0.00011966,2]
[352315653,1739039447339,-163.0,0.00011966,2]
[352315655,1739039447349,-157.0,0.00011966,2]
[352315657,1739039447358,-157.0,0.00011966,2]
[352315659,1739039447368,-163.0,0.00011966,2]
[352315678,1739039447545,-157.0,0.00011966,2]
[352315680,1739039447555,-163.0,0.00011966,2]
[352315682,1739039447565,-157.0,0.00011966,2]
[352315684,1739039447574,-163.0,0.00011966,2]
[352315685,1739039447584,-157.0,0.00011966,2]
[352315686,1739039447594,-166.93,0.00011966,2]
[352315688,1739039447603,-157.0,0.00011966,2]
[352315690,1739039447613,-157.0,0.00011966,2]
[352315692,1739039447622,-157.0,0.00011966,2]
[352315694,1739039447632,-157.0,0.00011966,2]
[352315696,1739039447641,-157.0,0.00011966,2]
[352315698,1739039447651,-157.0,0.00011966,2]
[352315699,1739039447660,-157.0,0.00011966,2]
[352315700,1739039447670,-157.0,0.00011966,2]
[352315701,1739039447680,-157.0,0.00011966,2]
[352315702,1739039447689,-157.0,0.00011966,2]
[352315703,1739039447698,-157.0,0.00011966,2]
[352315704,1739039447707,-168.25,0.00011966,2]
[352315705,1739039447718,-153.0,0.00011973,2]
[352315706,1739039447729,-5354.82832721,0.00012,2]
[352315707,1739039447739,-10000.0,0.00012,2]
[352315708,1739039447749,-10000.0,0.00012,2]
[352315709,1739039447759,-10000.0,0.00012,2]
[352315710,1739039447769,-151.0,0.00012,2]
[352315711,1739039447779,-151.0,0.00012,2]
[352315712,1739039447789,-151.0,0.00012,2]
[352315713,1739039447800,-151.0,0.00012,2]
[352315714,1739039447810,-151.0,0.00012,2]
[352315715,1739039447819,-89.73575171,0.00012,2]
[352315716,1739039447832,-61.26424829,0.00012,2]
[352315717,1739039447842,-1454.50442937,0.00012,2]
[352315718,1739039447859,-545.49557063,0.00012,2]
[352315719,1739039447869,-162.518708,0.00012,2]
[352315720,1739039447879,-151.0,0.00012,2]
[352315721,1739039447889,-293.26751204,0.00012,2]
[352315722,1739039447901,-74.45559696,0.00012,2]
[352315723,1739039447911,-367.723109,0.00012,2]
[352315724,1739039447922,-235.744348,0.00012,2]
[352315725,1739039447931,-235.744348,0.00012,2]
[352315726,1739039447942,-240.369502,0.00012,2]
[352315727,1739039447952,-240.369502,0.00012,2]
[352315728,1739039447961,-204.568823,0.00012,2]
[352315729,1739039447971,-204.568823,0.00012,2]
[352315730,1739039447981,-286.9039069,0.00012,2]
[352315731,1739039447993,-695.2908581,0.00012,2]
[352315732,1739039448002,-949.38020762,0.00012,2]
[352315733,1739039448015,-32.81455738,0.00012,2]
[352315734,1739039448025,-457.793626,0.00012,2]
[352315735,1739039448036,-381.21035893,0.00012,2]
[352315736,1739039448275,-154.4962528,0.000114,2]
[352315737,1739039448285,-76.58326707,0.00012,2]
[352315738,1739039448295,-163.92048013,0.00012,12]
[352315791,1739039703124,447.84,0.0001402,30]
[352315795,1739040347126,-2226.74184079,0.0001023,2]
[352315796,1739040347147,-194.7542021,0.00010438,2]
[352315797,1739040347167,-400.0,0.00010685,2]
[352315798,1739040347188,-300.0,0.00010957,2]
[352315799,1739040347210,-500.0,0.00010958,2]
[352315800,1739040347231,-500.0,0.00010958,2]
[352315801,1739040347252,-509.88847311,0.00010958,2]
[352315802,1739040347271,-501.31960412,0.00010958,2]
[352315803,1739040347291,-500.0,0.00010958,2]
[352315804,1739040347311,-500.0,0.00010958,2]
[352315805,1739040347331,-612.4938387,0.00010958,2]
[352315806,1739040347351,-500.0,0.00010958,2]
[352315807,1739040347370,-254.00005632,0.00010958,2]
[352315808,1739040347391,-500.0,0.00010958,2]
[352315809,1739040347412,-510.17462129,0.00010958,2]
[352315810,1739040347434,-486.65282379,0.00010958,2]
[352315811,1739040347455,-500.0,0.00010958,2]
[352315812,1739040347481,-500.0,0.00010958,2]
[352315813,1739040347503,-500.0,0.00010958,2]
[352315814,1739040347525,-602.61850202,0.00010958,2]
[352315815,1739040347547,-503.65403261,0.00010958,2]
[352315816,1739040347568,-500.0,0.00010958,2]
[352315817,1739040347591,-500.0,0.00010958,2]
[352315818,1739040347611,-500.0,0.00010958,2]
[352315819,1739040347631,-150.15855761,0.00010958,2]
[352315820,1739040347653,-360.07393806,0.00010958,2]
[352315821,1739040347673,-500.0,0.00010958,2]
[352315822,1739040347694,-500.0,0.00010958,2]
[352315823,1739040347715,-500.0,0.00010958,2]
[352315824,1739040347736,-500.0,0.00010958,2]
[352315825,1739040347757,-500.0,0.00010958,2]
[352315826,1739040347780,-528.54,0.00010958,2]
[352315827,1739040347803,-500.0,0.00010958,2]
[352315828,1739040347825,-500.0,0.00010958,2]
[352315829,1739040347847,-500.0,0.00010958,2]
[352315830,1739040347870,-500.0,0.00010958,2]
[352315831,1739040347891,-500.0,0.00010958,2]
[352315832,1739040347912,-500.0,0.00010958,2]